Cogmind - Beta 14 @@@ ROGUE MODE // 2024.12.31 @ 22:00:59 Player: Beef Result: Destroyed by G-34 Mercenary with Small Laser Performance ------------- Evolutions (0) 0 Regions Visited (1) 200 Robots Destroyed (17) 85 Value Destroyed (270) 270 Prototype IDs (0) 0 Alien Tech Used (0) 0 Bonus (0) 0 TOTAL SCORE: 555 Bonus ------- None Cogmind --------- Core Integrity 0/250 Matter 240/300 Energy 35/100 System Corruption 0% Temperature Cool (9) Movement Core (150) Ox2 Location -10/Materials Parts ------- > --- POWER (1) -------- (None) > --- PROPULSION (2) --- (None) > --- UTILITY (2) ------ Small Storage Unit > --- WEAPON (2) ------- EM Pulse Gun > --- INVENTORY (8) ---- Ion Engine Grenade Launcher Peak State ------------ > --- POWER ------------ Ion Engine > --- PROPULSION ------- Aluminum Leg Aluminum Leg > --- UTILITY ---------- Small Storage Unit Improved Terrain Scanner > --- WEAPON ----------- Medium Laser Assault Rifle > --- INVENTORY -------- Ion Engine EM Pulse Gun [Rating: 9] Favorites ----------- Power Ion Engine Engine Ion Engine Propulsion Aluminum Leg Leg Aluminum Leg Wheel Compact Wheel Utility Small Storage Unit Device Improved Terrain Scanner Storage Small Storage Unit Weapon Assault Rifle Energy Gun Medium Laser Ballistic Gun Assault Rifle Build | -11 -10 ------- Run | Yrd Mat Slots Evolved . | . . Power . | . . Propulsion . | . . Utility . | . . Weapon . | . . Parts Attached 15 | 9 6 Power 1 | 1 . Engine 1 | 1 . Core . | . . Reactor . | . . Propulsion 3 | 3 . Treads . | . . Leg 2 | 2 . Wheel 1 | 1 . Hover . | . . Flight . | . . Utility 3 | 2 1 Device 2 | 1 1 Storage 1 | 1 . Processor . | . . Hackware . | . . Protection . | . . Artifact . | . . Weapon 8 | 3 5 Energy Gun 5 | 2 3 Energy Cannon . | . . Ballistic Gun 3 | 1 2 Ballistic Cannon . | . . Launcher . | . . Special Weapon . | . . Impact Weapon . | . . Slashing Weapon . | . . Piercing Weapon . | . . Special Melee Weapon . | . . Unidentified Prototypes . | . . Parts Lost 10 | . 10 Power 1 | . 1 Propulsion 2 | . 2 Utility 2 | . 2 Weapon 5 | . 5 Highest Loss Streak 10 | . 10 To Critical Strikes . | . . Average Slot Usage (%) 87 | . 87 Engine 11 | . 11 Leg 22 | . 22 Device 13 | . 13 Storage 14 | . 14 Energy Gun 13 | . 13 Ballistic Gun 11 | . 11 Peak Build Rating 9 | 9 9 Average Rating 7 | 5 7 On Entrance 4 | . 9 Naked Turns . | . . Heaviest Build 15 | 15 15 Greatest Support 20 | 20 20 Greatest Overweight (x) 1 | . 1 Average Overweight (x) . | . . Largest Inventory Capacity 8 | 8 8 Average Capacity 7 | 7 8 Most Carried 3 | 3 3 Average Carried 2 | 1 2 Final Capacity 8 | 8 8 Final Carried 2 | 2 2 Class Distribution -------------------- 100% | Mutant Dominant Class ---------------- Mutant | -10/Materials Resources | -11 -10 ----------- Run | Yrd Mat Matter Collected 393 | 314 79 Remotely . | . . Salvage Created 610 | 134 476 Parts 31 | 3 28 Haulers Intercepted 1 | . 1 Recyclers Shooed 1 | 1 . Parts Field Recycled . | . . Retrieved Matter . | . . Parts Self-Destructed . | . . Prevented . | . . Kills | -11 -10 ------- Run | Yrd Mat Combat Hostiles Destroyed 8 | . 8 Guns 8 | . 8 Classes Destroyed 7 | 2 5 Worker 3 | . 3 Tunneler 2 | 2 . Hauler 1 | . 1 Recycler 2 | 1 1 Watcher 1 | . 1 Swarmer 3 | . 3 Grunt 5 | . 5 Best Kill Streak 4 | 3 4 Combat Bots Only 4 | . 4 Max Kills in Single Turn 1 | 1 1 Gunslinging . | . . Exploded . | . . Melee . | . . Uniques/NPCs Destroyed . | . . Combat | -11 -10 -------- Run | Yrd Mat Hostile Shots Fired 129 | . 129 Missed 29 | . 29 Damage Taken 1036 | . 1036 Core 258 | . 258 Absorbed by Shields . | . . Core Remaining (%) 100 | 100 . Volleys Fired 59 | 8 51 Largest 2 | 2 2 Hottest 90 | 70 90 Shots Fired 106 | 16 90 Gun 106 | 16 90 Cannon . | . . Launcher . | . . Special . | . . Kinetic 51 | 8 43 Thermal 41 | 8 33 Explosive . | . . Electromagnetic 14 | . 14 Robot Hit Streak 16 | 5 16 Robot Miss Streak 3 | 1 3 Penetration Max . | . . Secondary Targets 1 | . 1 Max Gunslinging Chain 1 | . 1 Shots Hit Robots 76 | 12 64 Core Hits 25 | 4 21 Critical Kills . | . . Critical Parts Destroyed . | . . Critical Strikes 5 | 2 3 Burn 5 | 2 3 Melee Attacks . | . . Impact . | . . Slashing . | . . Piercing . | . . Sneak Attacks . | . . Combat Hostiles . | . . Follow-up Attacks . | . . Damage Inflicted 987 | 160 827 Guns 987 | 160 827 Cannons . | . . Explosions . | . . Melee . | . . Ramming . | . . Kinetic 451 | 87 364 Thermal 423 | 73 350 Explosive . | . . Electromagnetic 113 | . 113 Impact . | . . Slashing . | . . Piercing . | . . Highest Corruption . | . . Average Corruption . | . . Corruption Purged . | . . Corruption Blocked . | . . Overload Shots . | . . Overflow Damage . | . . Projectiles . | . . Explosions . | . . Melee . | . . Knockbacks . | . . Impact . | . . Kinetic . | . . Secondary . | . . Self-Inflicted Damage . | . . Shots . | . . Rammed . | . . Targets Rammed . | . . Kicked . | . . Crushed . | . . Highest Temperature 393 | 54 393 Average Temperature 114 | 24 131 Received Heat Transfer 420 | . 420 Effects 4 | . 4 Shutdowns 2 | . 2 Energy Bleed 1 | . 1 Interference 1 | . 1 Siege Activations . | . . Robots Corrupted . | . . Combat Hostiles . | . . Parts Fried . | . . Impact Corruptions . | . . Robots Melted . | . . Combat Hostiles . | . . Parts Melted 2 | . 2 Heat Transferred 1628 | 370 1258 Parts Sabotaged . | . . Parts Stolen . | . . Parts Stripped . | . . Power Chain Reactions . | . . Alert | -11 -10 ------- Run | Yrd Mat Peak Influence 169 | 15 169 Initial 9 | . 9 Average 45 | 5 60 Maximum Alert Level . | . . Low Security (%) 100 | 100 100 Level 1 . | . . Level 2 . | . . Level 3 . | . . Level 4 . | . . Level 5 . | . . High Security . | . . Max Security . | . . Squads Dispatched 2 | . 2 Investigation . | . . Extermination . | . . Reinforcement 2 | . 2 Assault . | . . Garrison . | . . Intercept . | . . Searches Triggered . | . . Construction Impeded . | . . Haulers Reinforced . | . . Active Scanning Responses . | . . Cargo Convoy Interrupts . | . . Stealth | -11 -10 --------- Run | Yrd Mat Distress Signals 2 | . 2 Communications Jammed . | . . Distress Signals . | . . Times Spotted 13 | . 13 Peak Tracking Total 6 | . 6 Tactical Retreats . | . . Traps | -11 -10 ------- Run | Yrd Mat Traps Triggered . | . . Indirectly . | . . Trap Hack Attempts . | . . Triggered . | . . Disarmed . | . . Reprogrammed . | . . Reused . | . . Traps Extracted . | . . Installed . | . . Triggered . | . . Machines | -11 -10 ---------- Run | Yrd Mat Machines Disabled 1 | . 1 Max in Single Turn 1 | . 1 Machines Repaired . | . . Machines Dismantled . | . . Machines Sabotaged . | . . Overloaded Fab Kills . | . . Hacking | -11 -10 --------- Run | Yrd Mat Machines Accessed 2 | . 2 Terminals 2 | . 2 Fabricators . | . . Repair Stations . | . . Recycling Units . | . . Scanalyzers . | . . Garrison Access . | . . Total Hacks 6 | . 6 Successful 2 | . 2 Failed 4 | . 4 Catastrophic . | . . Database Lockouts . | . . Manual 6 | . 6 Terminals 6 | . 6 Fabricators . | . . Repair Stations . | . . Recycling Units . | . . Scanalyzers . | . . Garrison Access . | . . Terminal Hacks . | . . Fabricator Hacks . | . . Repair Station Hacks . | . . Recycling Unit Hacks . | . . Scanalyzer . | . . Garrison Access Hacks . | . . Unauthorized Hacks 2 | . 2 Terminals 2 | . 2 Assimilate 1 | . 1 Botnet 1 | . 1 Fabricators . | . . Repair Stations . | . . Recycling Units . | . . Scanalyzers . | . . Garrison Access . | . . Data Cores Recovered . | . . Used . | . . Hacking Detections 2 | . 2 Full Trace Events 1 | . 1 Feedback Events . | . . Feedback Blocked . | . . Robot Schematics Acquired . | . . Robots Built . | . . Authchips . | . . Time . | . . Total Robot Build Rating . | . . Part Schematics Acquired . | . . Parts Built . | . . Authchips . | . . Time . | . . Total Part Build Rating . | . . Parts Repaired . | . . Time . | . . Parts Recycled . | . . Recycled Matter . | . . Retrieved Matter . | . . Retrieved Components . | . . Parts Scanalyzed . | . . Part Schematics Acquired . | . . Parts Damaged . | . . Bothacking | -11 -10 ------------ Run | Yrd Mat Used RIF Installer . | . . Robots Hacked . | . . Non-combat . | . . Combat . | . . Robot Hacks Applied . | . . Relay Couplers Released . | . . Fabnet Peak Effective % . | . . Robots Rewired . | . . Allies Hacked . | . . Hacks Repelled . | . . Allies | -11 -10 -------- Run | Yrd Mat Total Allies . | . . Largest Group . | . . Highest-Rated Group . | . . Highest-Rated Ally . | . . Total Orders . | . . Ally Attacks . | . . Total Damage . | . . Kills . | . . Allies Corrupted . | . . Allies Melted . | . . Intel | -11 -10 ------- Run | Yrd Mat Robot Analysis Total . | . . Derelict Logs Recovered . | . . Drone Launches . | . . Drone Recoveries . | . . Exploration | -11 -10 ------------- Run | Yrd Mat Turns Passed 401 | 112 289 Spaces Moved 173 | 63 110 Core 5 | 4 1 Treads . | . . Legs 167 | 58 109 Wheels 1 | 1 . Hover . | . . Flight . | . . Fastest Speed 50 | 50 100 Average Speed 118 | 115 121 Slowest Speed 190 | 120 190 Overloaded Moves . | . . Propulsion Burnouts . | . . Robots Hopped . | . . Cave-ins Triggered . | . . Exploration Rate (%) 12 | 4 20 Regions Visited 1 Branch Regions . Pre-discovered Areas . | . . Known Exits Taken . | . . Unknown Exits Taken 1 | 1 . Scrap Searched . | . . Spaces Dug . | . . Terrain Destroyed . | . . Melee . | . . Projectile . | . . AOE . | . . Terrain Rammed . | . . Walls Destroyed . | . . Machines Disabled . | . . Actions | -11 -10 --------- Run | Yrd Mat Total 258 | 83 175 Wait 6 | . 6 Move 172 | 62 110 Hop . | . . Pick Up 3 | 2 1 Fast Attach 12 | 8 4 Attach 2 | . 2 Detach 2 | 1 1 Swap 1 | 1 . Drop 1 | 1 . Fire 59 | 8 51 Melee . | . . Ram . | . . Kick . | . . Crush . | . . Escape Stasis . | . . Rewire . | . . Trap . | . . Miscellaneous . | . . Route ------- -11/Scrapyard -10/Materials History --------- Turn | Location | Event 7 | -11/Scrapyard | Discovered new exit (range 16) 113 | -11/Scrapyard | Entered Materials 304 | -10/Materials | Build established: Mutant 366 | -10/Materials | Core integrity fell below 50% 396 | -10/Materials | Core integrity fell below 20% 402 | -10/Materials | Destroyed by G-34 Mercenary with Small Laser Last Messages --------------- 00362_ Acquired Assault Rifle. 00367_ Aluminum Leg destroyed. 00369_ G-34 Mercenary IFF system glitched. 00379_ S-10 Pest destroyed. 00379_ Switching to secondary target: G-34 Mercenary. 00385_ Destroyed Flight Unit. 00385_ G-34 Mercenary IFF system glitched. 00387_ K-01 Serf collects debris. 00387_ Assault Rifle destroyed. 00388_ S-10 Pest destroyed. 00389_ Assault Rifle destroyed. 00390_ K-01 Serf collects debris. 00392_ EM Pulse Gun destroyed. 00394_ Structural Scanner destroyed. 00394_ Acquired EM Pulse Gun. 00394_ K-01 Serf collects debris. 00395_ S-10 Pest destroyed. 00397_ K-01 Serf collects debris. 00397_ G-34 Mercenary destroyed. 00399_ Atomic Centrifuge disabled. Map ----- +----------------------------------------------------+ | ????????????????????????????????????????????? | | ????????????????????????????????????????????? | | ????????????????????????????????????????????? | | ????????????????????????????????????????????? | | ????????????????????????????????????????????? | | ????????????????????????????????????????????? | | ????????????????????????????????????????????? | | ????????????????????????????????????????????? | | ????????????????????????????????????????????? | | ????????????????????????????????????????????? | | ????????????????????????????????????????????? | | ????????????????????????????????????????????? | | ??????????? ## ?????????????????????????????? | | ???????????+## ?????????????????????????????? | | ??????????? ?????????????????????????????? | | ??????????? ?????????????????????????????? | | ?????????? ?????????????????????????????? | | ?????????### # ?????#?????????????????????? | | ?????????? # # ???????????????????????????? | | ?????????? # # ?????#?????????????????????? | | ?????????? # + ???? ?#????????????????????? | | ????"????? # # ???????????????????????????? | | ????????? + = # """" #######???????????????? | | ?????? ??? # %=#############?#??????????????? | | ???"???? ? # #[ ![ = ##?? ?????????????? | | ????????? #!=!#[% @ =% ##??????? ???????#? | | ?????????? #[*%#%= """ ##????????????????? | | ??????????##!%!/g= """ ##????????????????? | | ??????????##!=%# [g "" ##????????????????? | | ???????#??##!!!# = a/ ? ???? ???????? | | ???????#??##! =#######+#######??#???????????? | | #????????####+########%#######??????????????? | | #????????# #?##=##??#?#####??????????? | | ?#???????# """ #??# ###???#"""#?????#????? | | ??"?? ???# """ #??#=#######"T"#######???#? | | ?????????# """ ####!* #????? | | #???? ? ?# + % #????? | | ??????? ?# """ #### #???? | | ??"???? ?# """ #??### ########### #????? | | ??? ?????# """ ######+#####?????# #????? | | ?????? ??# ## #??#???# ###??? | | ?????????########### T """ #????#?# ###### | | ????###+####### # """ =######## # | | ????# # """ # """ # # | | ???## + # """ # # """ | | ????########+## # ! # """ + + """ | | ??????????????##+############ # # """ | | ??#????????? ?# | ##[ # # | | ???????#??????# ## # ###### | | ???????????? ?# #############???#? | +----------------------------------------------------+ Best States ------------- Heat Dissipation 25 Energy Generation 10 Energy Capacity 250 Matter Stores 300 Matter Capacity 300 Sight Range 16 Terrain Scan Range 16 Terrain Scan Density 10 Evasion (%) 55 Item Schematics ----------------- None Robot Schematics ------------------ None Fabricated ------------ Nothing Alien Tech Used ----------------- None Achievements -------------- None Challenges ------------ None Game ------ Seed ConstructAlloyGun Manual? 0 Play Time 00:04:06 Cumulative 139.7 hours Start 2024.12.31 @ 21:58:42 End 2024.12.31 @ 22:00:59 Sessions 1 Manual Loads 0 Difficulty Rogue Special Mode None Game No. 159 Rogue 159 Adventurer 0 Explorer 0 Win Type - Total 3 Types 2/0/1/0/0/0/0/0/0 Lore% 62 Gallery% 68 Achievement% 52 Wizard Run 0 Options --------- Layout 0 ASCII 0 Keyboard 1 Movement Numpad Keybinds 0 Fullscreen 2 Font 18/SmallcapsGlow Map View 76x50 Zoom Use 0% Tactical HUD 1 Map Filters NONE Filters NONE Steam 1 RUN: dc049cc5-ae50-4891-8e84-f1f9f5877b5e